bitfinex-derivatives/quotes_BTCF0:USTF0_20250508
["timestamp","ask_amount","ask_price","bid_price","bid_amount"]
[1746677420523,0.8643764,99213.0,99212.0,1e-08]
[1746677420909,0.7343764,99213.0,99212.0,1e-08]
[1746677421920,0.2016007,99201.0,99200.0,0.1]
[1746677422125,0.5624007,99201.0,99200.0,0.1]
[1746677423125,0.5644007,99201.0,99200.0,0.1]
[1746677423922,0.5664007,99201.0,99200.0,0.1]
[1746677424318,0.2056007,99201.0,99200.0,0.1]
[1746677426512,0.2056007,99201.0,99192.0,0.00151221]
[1746677426513,0.201617,99193.0,99192.0,0.00151221]
[1746677426718,0.2016312,99186.0,99179.0,0.255]
[1746677427515,0.3662312,99186.0,99179.0,0.255]
[1746677427717,0.3662312,99186.0,99179.0,0.1689]
[1746677428128,0.3662312,99186.0,99185.0,0.00300821]
[1746677428523,0.38162583,99186.0,99185.0,0.00300821]
[1746677428920,0.3672312,99186.0,99185.0,0.00300821]
[1746677429120,0.5352312,99186.0,99185.0,0.00300821]
[1746677429518,0.2016739,99165.0,99154.0,0.4112239]
[1746677429719,0.2016739,99165.0,99164.0,0.4408]
[1746677430626,0.2026739,99165.0,99164.0,0.4468]
[1746677431231,0.2026739,99165.0,99164.0,0.006]
[1746677431529,0.2896739,99165.0,99164.0,0.006]
[1746677431828,0.2016882,99158.0,99155.0,0.00100852]
[1746677432724,0.3740882,99158.0,99155.0,0.00100852]
[1746677432928,0.3740882,99158.0,99157.0,0.20320294]
[1746677432929,0.2016882,99158.0,99157.0,0.20320294]
[1746677433126,0.2016882,99158.0,99157.0,0.16951274]
[1746677433521,0.2016882,99158.0,99157.0,0.33151274]
[1746677434126,0.2036882,99158.0,99157.0,0.16451274]
[1746677434327,0.2036882,99158.0,99157.0,0.08091274]
[1746677434529,0.3692882,99158.0,99157.0,0.08091274]
[1746677434728,0.3692882,99158.0,99157.0,0.00251274]
[1746677434924,0.3702882,99158.0,99157.0,0.00251274]
[1746677438730,0.2836882,99158.0,99157.0,0.00251274]
[1746677439134,0.2836882,99158.0,99157.0,0.16921274]
[1746677439331,0.2836882,99158.0,99157.0,0.08481274]
[1746677442129,0.2836882,99158.0,99157.0,0.00251274]
[1746677442727,0.2046882,99158.0,99157.0,0.00251274]
[1746677443031,0.003,99158.0,99157.0,0.20420294]
[1746677443232,0.2046882,99158.0,99157.0,0.81710294]
[1746677443534,0.2046882,99158.0,99157.0,0.53710294]
[1746677443738,0.2046882,99158.0,99157.0,1.01790294]
[1746677444433,0.2016787,99168.0,99167.0,0.302495]
[1746677444640,0.2016787,99168.0,99167.0,0.312495]
[1746677444840,0.2016787,99168.0,99167.0,0.362495]
[1746677445234,0.2016787,99168.0,99167.0,0.480495]
[1746677445435,0.2026787,99168.0,99167.0,0.642395]
[1746677445741,0.2026787,99168.0,99167.0,0.5415699]
[1746677446332,0.2066787,99168.0,99167.0,0.5425699]
[1746677446539,0.2066787,99168.0,99167.0,0.3409]
[1746677448539,0.2066787,99168.0,99167.0,0.5425699]
[1746677448744,0.2066787,99168.0,99167.0,0.3309]
[1746677449246,0.3366787,99168.0,99167.0,0.001]
[1746677449634,0.2899787,99168.0,99167.0,0.001]
[1746677450139,0.2899787,99168.0,99167.0,0.169]
[1746677450340,0.2859787,99168.0,99167.0,0.168]
[1746677450643,0.2979787,99168.0,99167.0,0.169]
[1746677451045,0.2959787,99168.0,99167.0,0.169]
[1746677451348,0.2929787,99168.0,99167.0,0.169]
[1746677452045,0.2096787,99168.0,99167.0,0.169]
[1746677452250,0.008,99168.0,99167.0,0.3226699]
[1746677452450,0.2046678,99168.0,99167.0,0.2792]
[1746677452638,0.2066678,99168.0,99167.0,0.2802]
[1746677453243,0.2066678,99168.0,99167.0,0.4482]
[1746677453951,0.2874678,99168.0,99167.0,0.4482]
[1746677454142,0.2874678,99168.0,99167.0,0.3282]
[1746677456459,0.17561264,99193.0,99167.0,0.4682]
[1746677456663,0.2016485,99180.0,99179.0,0.35322804]
[1746677456861,0.2016485,99180.0,99179.0,0.5120474]
[1746677457165,0.2016485,99180.0,99179.0,0.6596367]
[1746677458364,0.2076485,99180.0,99179.0,0.6596367]
[1746677458568,0.006,99180.0,99179.0,0.6596367]
[1746677458867,0.2016074,99202.0,99201.0,0.2015885]
[1746677459053,0.2016074,99202.0,99201.0,0.5988]
[1746677459255,0.2016074,99202.0,99201.0,0.6088]
[1746677459557,0.2016074,99202.0,99201.0,0.248]
[1746677460252,0.7311074,99202.0,99201.0,0.249]
[1746677460851,0.7311074,99202.0,99201.0,0.25]
[1746677461563,0.2884074,99202.0,99201.0,0.25]
[1746677461769,0.2864074,99202.0,99201.0,0.248]
[1746677462064,0.2914074,99202.0,99201.0,0.249]
[1746677462454,0.2904074,99202.0,99201.0,0.249]
[1746677462961,0.2904074,99202.0,99201.0,0.4506007]
[1746677463166,0.2884074,99202.0,99201.0,0.4496007]
[1746677463465,0.2036074,99202.0,99201.0,0.4496007]
[1746677463656,0.2036074,99202.0,99201.0,0.248]
[1746677464062,0.2036074,99202.0,99201.0,0.25]
[1746677464665,0.2016074,99202.0,99201.0,0.4516007]
[1746677464853,0.003,99202.0,99201.0,0.3716007]
[1746677465052,0.003,99202.0,99201.0,0.6616007]
[1746677465258,0.2015736,99215.0,99207.0,0.2015885]
[1746677465458,0.201575,99214.0,99207.0,0.8723885]
[1746677465653,0.001,99216.0,99207.0,0.8723885]
[1746677465654,0.2015737,99215.0,99211.0,0.0503948]
[1746677465860,0.2015737,99215.0,99214.0,0.2015723]
[1746677466059,0.2015737,99215.0,99214.0,0.5315723]
[1746677466266,0.2015737,99215.0,99214.0,0.6995723]
[1746677466463,0.001,99216.0,99215.0,0.2015723]
[1746677466668,0.001,99216.0,99215.0,0.8523723]
[1746677466861,0.5623378,99232.0,99231.0,0.2015398]
[1746677467166,0.5623378,99232.0,99231.0,0.3795398]
[1746677467960,0.2015378,99232.0,99231.0,0.3795398]
[1746677468164,0.2035378,99232.0,99231.0,0.3795398]
[1746677468560,0.2035378,99232.0,99231.0,0.178]
[1746677468759,0.2055378,99232.0,99231.0,0.178]
[1746677469467,0.2055378,99232.0,99231.0,0.3795398]
[1746677471567,0.2055378,99232.0,99231.0,0.178]
[1746677473270,0.2055378,99232.0,99231.0,0.01]
[1746677474169,0.2055378,99232.0,99231.0,0.178]
[1746677474670,0.2055378,99232.0,99231.0,0.168]
[1746677476369,0.201552,99225.0,99224.0,0.2870539]
[1746677477174,0.360552,99225.0,99224.0,0.4550539]
[1746677477376,0.361552,99225.0,99224.0,0.4550539]
[1746677477969,0.361552,99225.0,99224.0,0.168]
[1746677478274,0.2015723,99216.0,99215.0,0.2015719]
[1746677478571,0.2015723,99216.0,99215.0,0.2215719]
[1746677478773,0.3605723,99216.0,99215.0,0.2215719]
[1746677479068,0.3605723,99216.0,99215.0,0.3895719]
[1746677479460,0.3605723,99216.0,99215.0,0.188]
[1746677479868,0.4418723,99216.0,99215.0,0.188]
[1746677480066,0.4418723,99216.0,99215.0,0.189]
[1746677480268,0.4418723,99216.0,99215.0,0.3905723]
[1746677480569,0.4418723,99216.0,99215.0,0.3925723]
[1746677480774,0.4418723,99216.0,99215.0,0.191]
[1746677481163,0.4418723,99216.0,99215.0,0.189]
[1746677481567,0.4428723,99216.0,99215.0,0.188]
[1746677482073,0.2015442,99234.0,99215.0,0.7988]
[1746677482269,0.2015442,99234.0,99233.0,0.5623337]
[1746677482472,0.2015442,99234.0,99233.0,0.5723337]
[1746677482865,0.2015442,99234.0,99233.0,0.8723337]
[1746677483068,0.2015442,99234.0,99233.0,1.2070337]
[1746677483373,0.0848,99235.0,99234.0,0.2015337]
[1746677483574,0.2015317,99235.0,99234.0,0.6782337]
[1746677483967,0.0801,99241.0,99238.0,0.050381]
[1746677484276,0.2816215,99241.0,99240.0,0.2015215]
[1746677484474,0.2015157,99243.0,99242.0,0.2015175]
[1746677484664,0.2015157,99243.0,99242.0,0.3708]
[1746677485174,0.2015157,99243.0,99242.0,0.5388]
[1746677485374,0.2015157,99243.0,99242.0,0.7403175]
[1746677485771,0.2816157,99243.0,99242.0,0.7403175]
[1746677486168,0.2866157,99243.0,99242.0,0.7413175]
[1746677486876,0.2906157,99243.0,99242.0,0.7423175]
[1746677488171,0.2906157,99243.0,99242.0,0.5408]
[1746677488380,0.2906157,99243.0,99242.0,0.18]
[1746677488568,0.6514157,99243.0,99242.0,0.18]
[1746677488774,0.6514157,99243.0,99242.0,0.17]
[1746677488984,0.3699157,99243.0,99242.0,0.17]
[1746677489280,0.3699157,99243.0,99242.0,0.002]
[1746677493083,0.5379157,99243.0,99242.0,0.002]
[1746677494084,0.3699157,99243.0,99242.0,0.002]
[1746677496178,0.3699157,99243.0,99242.0,0.17]
[1746677497187,0.3699157,99243.0,99242.0,0.002]
[1746677500087,0.7307157,99243.0,99242.0,0.002]
[1746677516094,0.0891,99243.0,99242.0,0.002]
[1746677516397,0.2105154,99243.0,99242.0,0.58039197]
[1746677516598,0.2105154,99243.0,99242.0,0.5667175]
[1746677516798,0.2105154,99243.0,99242.0,0.3652]
[1746677516998,0.2105154,99243.0,99242.0,0.726]
[1746677517191,0.2888154,99243.0,99242.0,0.894]
[1746677517998,0.2888154,99243.0,99242.0,0.7264]
[1746677521201,0.2888154,99243.0,99242.0,0.5584]
[1746677521403,0.2888154,99243.0,99242.0,0.1976]
[1746677521592,0.2888154,99243.0,99242.0,0.5584]
[1746677522201,0.2888154,99243.0,99242.0,0.7264]
[1746677523202,0.2105154,99243.0,99242.0,0.7264]
[1746677524592,0.2105154,99243.0,99242.0,0.9279175]
[1746677534807,0.2889154,99243.0,99242.0,0.9279175]
[1746677538613,0.2889154,99243.0,99242.0,0.28]
[1746677539211,0.2889154,99243.0,99242.0,0.112]
[1746677539617,0.3727154,99243.0,99242.0,0.112]
[1746677543025,0.7335154,99243.0,99242.0,0.112]
[1746677547429,0.3727154,99243.0,99242.0,0.112]
[1746677550325,0.3727154,99243.0,99242.0,0.3135175]
[1746677550525,0.3727154,99243.0,99242.0,0.112]
[1746677551231,0.3727154,99243.0,99242.0,0.28]
[1746677551530,0.3727154,99243.0,99242.0,0.4815175]
[1746677552630,0.3727154,99243.0,99242.0,0.28]
[1746677553826,0.7335154,99243.0,99242.0,0.28]
[1746677554225,0.7335154,99243.0,99242.0,0.112]
[1746677557130,0.9015154,99243.0,99242.0,0.002]
[1746677558230,0.7335154,99243.0,99242.0,0.002]
[1746677559333,0.3727154,99243.0,99242.0,0.002]
[1746677559532,0.2889154,99243.0,99242.0,0.3535175]
[1746677560331,0.2889154,99243.0,99242.0,0.5215175]
[1746677561236,0.2889154,99243.0,99242.0,0.53481696]
[1746677561836,0.2105154,99243.0,99242.0,0.53481696]
[1746677563943,0.2105154,99243.0,99242.0,0.56481696]
[1746677563944,0.009,99243.0,99242.0,0.56481696]
[1746677564139,0.2105154,99243.0,99242.0,0.56481696]
[1746677565641,0.001,99246.0,99242.0,0.41367846]
[1746677565836,0.001,99246.0,99245.0,0.5623114]
[1746677566037,0.0503714,99258.0,99257.0,0.201485]
[1746677566238,0.0503714,99258.0,99257.0,0.592285]
[1746677566542,0.2014913,99258.0,99257.0,0.592285]
[1746677566944,0.050369,99265.0,99264.0,0.0503673]
[1746677567138,0.050369,99265.0,99264.0,0.2283673]
[1746677567632,0.050369,99265.0,99264.0,0.2183673]
[1746677567833,0.2014789,99265.0,99264.0,0.4198381]
[1746677568033,0.2014789,99265.0,99264.0,0.47325291]
[1746677569137,0.2044789,99265.0,99264.0,0.47425291]
[1746677569338,0.003,99265.0,99264.0,0.70425291]
[1746677570139,0.007,99265.0,99264.0,0.69425291]
[1746677571138,0.004,99265.0,99264.0,0.69425291]
[1746677571537,0.003,99265.0,99264.0,0.69325291]
[1746677572050,0.003,99265.0,99264.0,0.70075803]
[1746677572341,0.2044708,99265.0,99264.0,0.70075803]
[1746677573141,0.3600708,99265.0,99264.0,0.70075803]
[1746677573946,0.2820708,99265.0,99264.0,0.70075803]
[1746677574249,0.003,99265.0,99264.0,0.70075803]
[1746677577352,0.2044708,99265.0,99264.0,0.70075803]
[1746677578449,0.2883708,99265.0,99264.0,0.70075803]
[1746677579849,0.3707708,99265.0,99264.0,0.70075803]
[1746677580245,0.3707708,99265.0,99264.0,0.69325291]
[1746677580445,0.3707708,99265.0,99264.0,0.64288561]
[1746677580749,0.3707708,99265.0,99264.0,0.428]
[1746677580950,0.3707708,99265.0,99264.0,0.198]
[1746677582350,0.3707708,99265.0,99264.0,0.03]
[1746677589444,0.201485,99258.0,99257.0,0.3608]
[1746677589648,0.201485,99258.0,99257.0,0.3708]
[1746677590358,0.365385,99258.0,99257.0,0.3708]
[1746677591453,0.1639,99258.0,99235.0,0.3608]
[1746677591657,0.2015296,99236.0,99235.0,0.6223317]
[1746677592161,0.2015296,99236.0,99235.0,0.7903317]
[1746677592558,0.2015296,99236.0,99235.0,0.7953317]
[1746677592759,0.3677296,99236.0,99235.0,0.7953317]
[1746677594162,0.2852296,99236.0,99235.0,0.9553317]
[1746677594356,0.0847,99236.0,99235.0,1.1177317]
[1746677594557,0.2862296,99236.0,99235.0,1.1177317]
[1746677594755,0.0847,99236.0,99235.0,1.1377317]
[1746677594955,0.2862296,99236.0,99235.0,1.1377317]
[1746677595353,0.2872296,99236.0,99235.0,1.1397317]
[1746677597162,0.2862296,99236.0,99235.0,1.1367317]
[1746677598264,0.2862296,99236.0,99235.0,1.1387317]
[1746677599453,0.001,99236.0,99235.0,1.1387317]
[1746677599858,0.2025296,99236.0,99235.0,1.1387317]
[1746677600557,0.2025296,99236.0,99235.0,1.1187317]
[1746677601855,0.2025296,99236.0,99235.0,1.4795317]
[1746677604158,0.001,99236.0,99235.0,1.4795317]
[1746677605960,0.2025296,99236.0,99235.0,1.4795317]
[1746677606562,0.2025296,99236.0,99235.0,1.3995317]
[1746677606963,0.2025296,99236.0,99235.0,1.1176]
[1746677607162,0.2025296,99236.0,99235.0,1.1511317]
[1746677609865,0.2025296,99236.0,99235.0,0.9496]
[1746677610061,0.2025296,99236.0,99235.0,0.5888]
[1746677613964,0.2025296,99236.0,99235.0,0.3688]
[1746677614664,0.2025296,99236.0,99235.0,0.008]
[1746677614863,0.2015703,99216.0,99215.0,0.00100791]
[1746677615163,0.4111862,99229.0,99226.0,0.0503871]
[1746677615358,0.4111862,99229.0,99226.0,0.261933]
[1746677615359,0.2015564,99227.0,99226.0,0.261933]
[1746677615558,0.2015564,99227.0,99226.0,0.622733]
[1746677615962,0.2015564,99227.0,99226.0,0.3708]
[1746677616566,0.2025564,99227.0,99226.0,0.015]
[1746677616761,0.2785564,99227.0,99226.0,0.015]
[1746677617167,0.4465564,99227.0,99226.0,0.015]
[1746677617467,0.4465564,99227.0,99226.0,0.005]
[1746677617667,0.4475564,99227.0,99226.0,0.005]
[1746677618561,0.2015581,99222.0,99221.0,0.2015589]
[1746677620171,0.2025581,99222.0,99221.0,0.2035589]
[1746677620765,0.2025581,99222.0,99221.0,0.2015589]
[1746677621070,0.2025581,99222.0,99221.0,0.2125589]
[1746677622162,0.2015581,99222.0,99221.0,0.2125589]
[1746677622363,0.2015581,99222.0,99221.0,0.2135589]
[1746677622758,0.2015581,99222.0,99221.0,0.2125589]
[1746677622971,0.2015581,99222.0,99221.0,0.2145589]
[1746677623171,0.2025581,99222.0,99221.0,0.2155589]
[1746677623368,0.2025581,99222.0,99221.0,0.2135589]
[1746677623671,0.2025581,99222.0,99221.0,0.2155589]
[1746677624668,0.2025581,99222.0,99221.0,0.014]
[1746677624969,0.2025581,99222.0,99221.0,0.2155601]
[1746677626069,0.2025581,99222.0,99221.0,0.3835601]
[1746677627370,0.3608,99243.0,99221.0,0.472]
[1746677627574,0.2015418,99232.0,99231.0,0.2015302]
[1746677627781,0.2519265,99232.0,99231.0,0.01]
[1746677628264,0.2519265,99232.0,99231.0,0.178]
[1746677628774,0.2529265,99232.0,99231.0,0.178]
[1746677629274,0.2529265,99232.0,99231.0,0.01]
[1746677629472,0.3351265,99232.0,99231.0,0.01]
[1746677629974,0.3361265,99232.0,99231.0,0.01]
[1746677631575,0.2015662,99218.0,99217.0,0.3608]
[1746677631768,0.2015662,99218.0,99217.0,0.3708]
[1746677632475,0.2836662,99218.0,99217.0,0.3708]
[1746677632773,0.2846662,99218.0,99217.0,0.3758]
[1746677633967,0.3583662,99218.0,99217.0,0.3758]
[1746677635677,0.3583662,99218.0,99217.0,0.015]
[1746677636572,0.3583662,99218.0,99217.0,0.005]
[1746677637183,0.5263662,99218.0,99217.0,0.005]
[1746677642886,0.0503976,99206.0,99198.0,0.3608]
[1746677643087,0.2016048,99199.0,99198.0,0.3708]
[1746677643876,0.3414048,99199.0,99198.0,0.3708]
[1746677644484,0.3414048,99199.0,99198.0,0.3758]
[1746677645082,0.3414048,99199.0,99198.0,0.3708]
[1746677645384,0.3424048,99199.0,99198.0,0.3778]
[1746677645784,0.3414048,99199.0,99198.0,0.3718]
[1746677645982,0.3414048,99199.0,99198.0,0.3708]
[1746677646882,0.3414048,99199.0,99198.0,0.01]
[1746677647084,0.2016109,99196.0,99195.0,0.00151212]
[1746677648180,0.2026109,99196.0,99195.0,0.00251212]
[1746677648385,0.2026109,99196.0,99195.0,0.00351212]
[1746677648973,0.21014803,99196.0,99195.0,0.00351212]
[1746677650175,0.37814803,99196.0,99195.0,0.00351212]
[1746677651187,0.2026109,99196.0,99195.0,0.00351212]
[1746677651587,0.2026109,99196.0,99195.0,0.01351212]
[1746677651788,0.2026109,99196.0,99195.0,0.35572502]
[1746677652188,0.2026109,99196.0,99195.0,0.82372502]
[1746677652677,0.2026109,99196.0,99195.0,0.56372502]
[1746677653090,0.2026109,99196.0,99195.0,0.55372502]
[1746677654287,0.2026109,99196.0,99195.0,0.50372502]
[1746677654489,0.2026109,99196.0,99195.0,0.80372502]
[1746677654885,0.2026109,99196.0,99195.0,0.60211212]
[1746677655190,0.2026109,99196.0,99195.0,0.188]
[1746677655384,0.2728109,99196.0,99195.0,0.188]
[1746677655983,0.6336109,99196.0,99195.0,0.188]
[1746677656186,0.6336109,99196.0,99195.0,0.02]
[1746677657692,0.2026109,99196.0,99195.0,0.02]
[1746677658780,0.2026109,99196.0,99195.0,0.0871]
[1746677659184,0.2026109,99196.0,99195.0,0.2551]
[1746677659589,0.2026109,99196.0,99195.0,0.4567129]
[1746677662391,0.2026109,99196.0,99195.0,0.7067129]
[1746677669092,0.2026109,99196.0,99195.0,0.6396129]
[1746677669294,0.2706109,99196.0,99195.0,0.438]
[1746677669588,0.2706109,99196.0,99195.0,0.6396129]
[1746677671593,0.2706109,99196.0,99195.0,0.438]
[1746677671795,0.3387109,99196.0,99195.0,0.6396129]
[1746677673195,0.3387109,99196.0,99195.0,1.0004129]
[1746677673398,0.2706109,99196.0,99195.0,1.0004129]
[1746677673784,0.2026109,99196.0,99195.0,1.0004129]
[1746677675794,0.2699109,99196.0,99195.0,1.0004129]
[1746677678199,0.2699109,99196.0,99195.0,0.7704129]
[1746677681600,0.3351109,99196.0,99195.0,0.7704129]
[1746677684504,0.2678109,99196.0,99195.0,0.9704129]
[1746677685101,0.2678109,99196.0,99195.0,1.0356129]
[1746677686207,0.2678109,99196.0,99195.0,1.0556129]
[1746677688406,1e-08,99196.0,99195.0,1.0556129]
[1746677689199,0.2016033,99200.0,99199.0,0.2016048]
[1746677689400,0.2016033,99200.0,99199.0,0.4616048]
[1746677689903,0.11872858,99344.0,99199.0,0.4616048]
[1746677689904,0.01258797,99234.0,99199.0,1.2508]
[1746677690106,0.0715,99244.0,99241.0,0.2015158]
[1746677690303,0.2015154,99243.0,99242.0,0.1352]
[1746677690507,0.2015154,99243.0,99242.0,0.6867154]
[1746677691203,0.2015154,99243.0,99242.0,0.8547154]
[1746677691807,0.2686154,99243.0,99242.0,0.8567154]
[1746677691996,0.0671,99243.0,99242.0,0.8693132]
[1746677692401,0.0503762,99249.0,99242.0,0.8693132]
[1746677692402,0.0503705,99260.0,99256.0,0.0503719]
[1746677692609,0.201485,99258.0,99257.0,0.0695]
[1746677692811,0.201485,99258.0,99257.0,0.1]
[1746677693711,0.270185,99258.0,99257.0,0.1]
[1746677694504,0.271185,99258.0,99257.0,0.1]
[1746677695404,0.272185,99258.0,99257.0,0.1]
[1746677695612,0.341685,99258.0,99257.0,0.1]
[1746677696213,0.509685,99258.0,99257.0,0.1]
[1746677697217,0.341685,99258.0,99257.0,0.1]
[1746677702321,0.341685,99258.0,99257.0,0.301487]
[1746677703422,0.340685,99258.0,99257.0,0.301487]
[1746677703723,0.340685,99258.0,99257.0,0.302487]
[1746677704117,0.271985,99258.0,99257.0,0.469487]
[1746677704818,0.001,99258.0,99257.0,0.469487]
[1746677705318,0.2014816,99260.0,99259.0,0.2014789]
[1746677705518,0.2014816,99260.0,99259.0,0.3914789]
[1746677706021,0.2014816,99260.0,99259.0,0.5227789]
[1746677706223,0.2014816,99260.0,99259.0,0.6907789]
[1746677706820,0.2024816,99260.0,99259.0,0.6907789]
[1746677707021,0.2024816,99260.0,99259.0,0.6917789]
[1746677707424,0.001,99260.0,99259.0,0.6917789]
[1746677710729,0.2024809,99260.0,99259.0,0.6917789]
[1746677710921,0.001,99260.0,99259.0,0.6917789]
[1746677713427,0.001,99260.0,99259.0,0.7317789]
[1746677715225,0.0518601,99280.0,99273.0,0.0503632]
[1746677715426,0.2024505,99276.0,99275.0,0.2014505]
[1746677715625,0.2024505,99276.0,99275.0,0.3868505]
[1746677715826,0.2024505,99276.0,99275.0,0.4536505]
[1746677716122,0.2024505,99276.0,99275.0,0.6216505]
[1746677716422,0.2094505,99276.0,99275.0,0.6216505]
[1746677717026,0.2094505,99276.0,99275.0,0.6226505]
[1746677718528,0.2064505,99276.0,99275.0,0.6226505]
[1746677718731,0.2094505,99276.0,99275.0,0.6236505]
[1746677720132,0.2094505,99276.0,99275.0,0.5568505]
[1746677720333,0.2094505,99276.0,99275.0,0.6248505]
[1746677722319,0.008,99276.0,99275.0,0.6248505]
[1746677722733,0.0651,99299.0,99275.0,0.4234]
[1746677722938,0.3202615,99298.0,99297.0,0.2014018]
[1746677723232,0.3202615,99298.0,99297.0,0.4294018]
[1746677724322,0.3212615,99298.0,99297.0,0.4294018]
[1746677726838,0.3212615,99298.0,99297.0,0.44118988]
[1746677728036,0.3212615,99298.0,99297.0,0.228]
[1746677729236,0.3212615,99298.0,99297.0,0.06]
[1746677732437,0.3212615,99298.0,99297.0,0.2614058]
[1746677734147,0.3212615,99298.0,99297.0,0.228]
[1746677734646,0.3212615,99298.0,99297.0,0.3891058]
[1746677734948,0.0695,99298.0,99297.0,0.3694058]
[1746677735139,0.001,99298.0,99297.0,0.6394058]
[1746677735545,0.001,99298.0,99297.0,0.7062058]
[1746677736639,0.001,99298.0,99297.0,0.7162058]
[1746677736835,0.2024038,99298.0,99297.0,0.7062058]
[1746677737237,0.2024038,99298.0,99297.0,0.5048]
[1746677737438,0.3283038,99298.0,99297.0,0.438]
[1746677738147,0.3283038,99298.0,99297.0,0.27]
[1746677739237,0.3283038,99298.0,99297.0,0.2297]
[1746677741445,0.3283038,99298.0,99297.0,0.4311058]
[1746677741847,0.3273038,99298.0,99297.0,0.4311058]
[1746677742646,0.3283038,99298.0,99297.0,0.4311058]
[1746677746351,0.3283038,99298.0,99297.0,0.2297]
[1746677747452,0.3273038,99298.0,99297.0,0.1894]
[1746677748354,0.3283038,99298.0,99297.0,0.1894]
[1746677748746,0.3293038,99298.0,99297.0,0.1894]
[1746677749151,0.3283038,99298.0,99297.0,0.1894]
[1746677749353,0.3293038,99298.0,99297.0,0.1894]
[1746677749754,0.3283038,99298.0,99297.0,0.1894]
[1746677749957,0.3293038,99298.0,99297.0,0.1894]
[1746677750655,0.3283038,99298.0,99297.0,0.1894]
[1746677750955,0.3293038,99298.0,99297.0,0.1894]
[1746677752655,0.3293038,99298.0,99297.0,0.2558]
[1746677754656,0.1279,99298.0,99297.0,0.4572058]
[1746677754859,0.002,99298.0,99297.0,0.5194058]
[1746677755157,0.002,99298.0,99297.0,0.6874058]
[1746677755952,0.002,99298.0,99297.0,0.7074058]
[1746677756150,0.001,99298.0,99297.0,0.7074058]
[1746677757665,0.1,99300.0,99299.0,0.2014018]
[1746677757858,0.1,99300.0,99299.0,0.8622018]
[1746677758161,0.1,99300.0,99299.0,1.0302018]
[1746677758767,0.101,99300.0,99299.0,1.0302018]
[1746677763063,0.2685727,99314.0,99305.0,0.2013896]
[1746677763271,0.2013735,99313.0,99305.0,0.4913896]
[1746677763570,0.2013406,99332.0,99331.0,0.2013288]
[1746677763865,0.2013406,99332.0,99331.0,0.8021288]
[1746677764070,0.2013406,99332.0,99331.0,0.9701288]
[1746677764368,0.2013406,99332.0,99331.0,0.9298388]
[1746677764571,0.2697406,99332.0,99331.0,0.9298388]
[1746677764766,0.063,99333.0,99332.0,0.2013349]
[1746677764966,0.063,99333.0,99332.0,0.5772349]
[1746677765161,0.0503274,99345.0,99335.0,0.2013288]
[1746677765467,0.241602,99339.0,99335.0,0.4913288]
[1746677765670,0.063,99338.0,99335.0,0.4913288]
[1746677765871,0.2643245,99338.0,99335.0,0.4913288]
[1746677766062,0.2013255,99337.0,99335.0,0.6593288]
[1746677766564,0.063,99338.0,99335.0,0.6593288]
[1746677766768,0.04028,99339.0,99335.0,0.6593288]
[1746677767165,0.1188283,99343.0,99335.0,0.6593288]
[1746677767166,0.2027985,99350.0,99349.0,0.2013004]
[1746677767365,0.2027985,99350.0,99349.0,0.7521004]
[1746677768267,0.0015,99350.0,99349.0,0.9201004]
[1746677768461,0.2067984,99350.0,99349.0,0.7188]
[1746677768667,0.2107984,99350.0,99349.0,0.9211004]
[1746677768962,0.0095,99350.0,99349.0,0.9211004]
[1746677769165,0.6909,99392.0,99365.0,0.201268]
[1746677769166,0.3608,99388.0,99365.0,0.201268]
[1746677769474,0.04027,99367.0,99366.0,0.3018986]
[1746677769664,0.04027,99367.0,99366.0,0.65174537]
[1746677770062,0.04027,99367.0,99366.0,0.81974537]
[1746677771076,0.2435339,99367.0,99366.0,0.28754677]
[1746677771275,0.04227,99367.0,99366.0,0.28754677]
[1746677771573,0.04227,99367.0,99366.0,0.48881277]
[1746677772170,0.0015,99385.0,99366.0,0.28754677]
[1746677772469,0.3259298,99384.0,99382.0,0.5620331]
[1746677772671,0.1247,99384.0,99383.0,0.2012315]
[1746677772872,0.1247,99384.0,99383.0,0.2430051]
[1746677773069,0.1247,99384.0,99383.0,0.0417736]
[1746677773271,0.3259295,99384.0,99383.0,0.03]
[1746677773471,0.3259295,99384.0,99383.0,0.2312315]
[1746677773668,0.1247,99384.0,99383.0,0.2312315]
[1746677773976,0.3259295,99384.0,99383.0,0.2312315]
[1746677774270,0.003,99384.0,99383.0,0.2312315]
[1746677774471,0.0025,99385.0,99384.0,0.2012295]
[1746677774683,0.06446465,99395.0,99384.0,0.4287]
[1746677774865,0.0623,99394.0,99393.0,0.2012113]
[1746677775062,0.0623,99394.0,99393.0,0.6108]
[1746677775275,0.0623,99394.0,99393.0,0.8120113]
[1746677775778,0.0623,99394.0,99393.0,0.8220113]
[1746677777172,0.0633,99394.0,99393.0,0.8220113]
[1746677777479,0.0663,99394.0,99393.0,0.8220113]
[1746677777873,0.0663,99394.0,99393.0,0.6208]
[1746677778178,0.0663,99394.0,99393.0,0.8220113]
[1746677778480,0.0663,99394.0,99393.0,0.8120113]
[1746677778683,0.0663,99394.0,99393.0,0.8220113]
[1746677779182,0.0663,99394.0,99393.0,0.8120113]
[1746677779382,0.0663,99394.0,99393.0,0.8220113]
[1746677780077,0.0633,99394.0,99393.0,0.8120113]
[1746677780273,0.0623,99394.0,99393.0,0.8150113]
[1746677780882,0.0623,99394.0,99393.0,0.8250113]
[1746677784896,0.0623,99394.0,99393.0,0.8870113]
[1746677786700,0.0618,99395.0,99394.0,0.2012093]
[1746677787002,0.0618,99395.0,99394.0,0.5112093]
[1746677787795,0.3608,99451.0,99394.0,0.25]
[1746677788000,0.0602,99419.0,99417.0,0.3608]
[1746677788203,0.0602,99419.0,99418.0,0.2011607]
[1746677788405,0.0602,99419.0,99418.0,0.23866734]
[1746677788905,0.0602,99419.0,99418.0,0.03750664]
[1746677789101,0.2282,99419.0,99418.0,0.23866734]
[1746677789502,0.2282,99419.0,99417.0,0.36105664]
[1746677789803,0.2282,99419.0,99417.0,0.42105664]
[1746677790002,0.0609,99418.0,99417.0,0.42105664]
[1746677790304,0.0609,99418.0,99417.0,0.58196934]
[1746677790502,0.1221,99418.0,99417.0,0.58196934]
[1746677790706,0.3232607,99418.0,99417.0,0.38851091]
[1746677791199,0.4912607,99418.0,99417.0,0.38551091]
[1746677791499,0.2901,99418.0,99417.0,0.38551091]
[1746677791692,0.2901,99418.0,99417.0,0.58667361]
[1746677792098,0.4912607,99418.0,99417.0,0.38551091]
[1746677792697,0.4922607,99418.0,99417.0,0.38551091]